Cogmind - Beta 14 @@@ ROGUE MODE // 2024.08.25 @ 11:22:35 Player: Wotf Result: Destroyed self with Rocket Launcher Performance ------------- Evolutions (0) 0 Regions Visited (2) 400 Robots Destroyed (17) 85 Value Destroyed (444) 444 Prototype IDs (2) 40 Alien Tech Used (0) 0 Bonus (0) 0 TOTAL SCORE: 969 Bonus ------- None Cogmind --------- Core Integrity 0/250 Matter 246/300 Energy 100/100 System Corruption 0% Temperature Cool (21) Movement Treading (240) Ox1 Location -10/Mines Parts ------- > --- POWER (1) -------- (None) > --- PROPULSION (2) --- Light Treads Light Treads > --- UTILITY (2) ------ High-capacity Storage Unit Structural Scanner > --- WEAPON (2) ------- Rocket Launcher > --- INVENTORY (20) --- Improved Ion Engine Light Treads Light Treads Wheel High-capacity Storage Unit Large Battery (200) Large Battery (200) Medium Matter Pod (100) Signal Interpreter Improved Terrain Scanner Seismic Detector Armor Integrity Analyzer Phase Shifter Medium Armor Plating Medium Armor Plating Medium Armor Plating Medium Armor Plating Light Cannon Mining Laser Peak State ------------ > --- POWER ------------ Improved Ion Engine > --- PROPULSION ------- Light Treads Light Treads > --- UTILITY ---------- High-capacity Storage Unit Structural Scanner > --- WEAPON ----------- Heavy EM Pulse Gun Heavy EM Pulse Gun > --- INVENTORY -------- Improved Ion Engine Light Treads Light Treads Light Treads Light Treads Light Treads High-capacity Storage Unit Large Battery Large Battery Medium Matter Pod Signal Interpreter Phase Shifter Medium Armor Plating Medium Armor Plating Medium Armor Plating Medium Armor Plating EM Pulse Gun Heavy EM Pulse Gun Assault Rifle Mining Laser [Rating: 13] Favorites ----------- Power Improved Ion Engine Engine Improved Ion Engine Propulsion Light Treads Treads Light Treads Wheel Wheel Utility Structural Scanner Device Structural Scanner Storage High-capacity Storage Unit Weapon Heavy EM Pulse Gun Energy Gun Heavy EM Pulse Gun Ballistic Gun Assault Rifle Ballistic Cannon Light Cannon Launcher Grenade Launcher Special Weapon Mining Laser Build | -11 -10 -10 ------- Run | Yrd Mat Min Slots Evolved . | . . . Power . | . . . Propulsion . | . . . Utility . | . . . Weapon . | . . . Parts Attached 32 | 6 13 13 Power 4 | 1 3 . Engine 4 | 1 3 . Core . | . . . Reactor . | . . . Propulsion 7 | 2 3 2 Treads 4 | . 2 2 Leg . | . . . Wheel 3 | 2 1 . Hover . | . . . Flight . | . . . Utility 4 | 1 3 . Device 1 | . 1 . Storage 3 | 1 2 . Processor . | . . . Hackware . | . . . Protection . | . . . Artifact . | . . . Weapon 17 | 2 4 11 Energy Gun 9 | 2 3 4 Energy Cannon . | . . . Ballistic Gun 1 | . 1 . Ballistic Cannon 2 | . . 2 Launcher 4 | . . 4 Special Weapon 1 | . . 1 Impact Weapon . | . . . Slashing Weapon . | . . . Piercing Weapon . | . . . Special Melee Weapon . | . . . Unidentified Prototypes . | . . . Parts Lost 9 | . 1 8 Power 1 | . . 1 Propulsion 2 | . . 2 Utility . | . . . Weapon 6 | . 1 5 Highest Loss Streak 5 | . 1 5 To Critical Strikes . | . . . Average Slot Usage (%) 97 | . 97 95 Engine 14 | . 14 14 Treads 16 | . 12 27 Wheel 11 | . 15 . Device 12 | . 12 14 Storage 14 | . 14 14 Energy Gun 18 | . 20 12 Ballistic Gun 5 | . 7 1 Ballistic Cannon 2 | . . 7 Peak Build Rating 13 | 6 11 13 Average Rating 9 | 5 9 10 On Entrance 5 | . 6 11 Naked Turns . | . . . Heaviest Build 54 | 13 53 54 Greatest Support 40 | 20 40 40 Greatest Overweight (x) 10 | 1 10 2 Average Overweight (x) . | . . 1 Largest Inventory Capacity 20 | 8 20 20 Average Capacity 16 | 7 15 20 Most Carried 20 | 8 20 20 Average Carried 15 | 3 14 18 Final Capacity 20 | 8 20 20 Final Carried 20 | 8 20 19 Class Distribution -------------------- 100% | Mutant Dominant Class ---------------- Mutant | -10/Materials Mutant | -10/Mines Resources | -11 -10 -10 ----------- Run | Yrd Mat Min Matter Collected 798 | 230 333 235 Remotely . | . . . Salvage Created 744 | 96 466 182 Parts 31 | 2 26 3 Haulers Intercepted 2 | . 2 . Recyclers Shooed 1 | . 1 . Parts Field Recycled . | . . . Retrieved Matter . | . . . Parts Self-Destructed . | . . . Prevented . | . . . Kills | -11 -10 -10 ------- Run | Yrd Mat Min Combat Hostiles Destroyed 22 | . 6 16 Guns 5 | . 3 2 AOE 17 | . 3 14 Classes Destroyed 8 | 1 5 2 Worker 1 | . 1 . Hauler 2 | . 2 . Recycler 2 | 1 . 1 Operator 1 | . 1 . Watcher 3 | . 3 . Grunt 6 | . 6 . Sentry 2 | . . 2 Assembled 14 | . . 14 Best Kill Streak 12 | 1 4 12 Combat Bots Only 12 | . 4 12 Max Kills in Single Turn 2 | 1 2 2 Gunslinging . | . . . Exploded 2 | . 2 2 Melee . | . . . Uniques/NPCs Destroyed . | . . . Combat | -11 -10 -10 -------- Run | Yrd Mat Min Hostile Shots Fired 68 | . 7 61 Missed 16 | . 2 14 Damage Taken 1402 | . 296 1106 Core 250 | . 114 136 Absorbed by Shields . | . . . Core Remaining (%) 100 | 100 . . Volleys Fired 95 | 2 58 35 Largest 2 | 2 2 2 Hottest 90 | 90 90 90 Shots Fired 142 | 4 90 48 Gun 123 | 4 90 29 Cannon 4 | . . 4 Launcher 15 | . . 15 Special . | . . . Kinetic 37 | . 26 11 Thermal 30 | 4 26 . Explosive 15 | . . 15 Electromagnetic 60 | . 38 22 Robot Hit Streak 9 | 3 9 6 Robot Miss Streak 12 | . 12 3 Penetration Max . | . . . Secondary Targets 1 | . 1 . Max Gunslinging Chain 1 | . 1 . Shots Hit Robots 70 | 3 40 27 Core Hits 65 | 2 20 43 Critical Kills . | . . . Critical Parts Destroyed . | . . . Critical Strikes 2 | . 1 1 Corrupt 2 | . 1 1 Melee Attacks . | . . . Impact . | . . . Slashing . | . . . Piercing . | . . . Sneak Attacks . | . . . Combat Hostiles . | . . . Follow-up Attacks . | . . . Damage Inflicted 2360 | 35 942 1383 Guns 854 | 35 605 214 Cannons 35 | . . 35 Explosions 1470 | . 336 1134 Melee . | . . . Ramming 1 | . 1 . Kinetic 304 | . 214 90 Thermal 408 | 35 292 81 Explosive 1132 | . 79 1053 Electromagnetic 515 | . 356 159 Impact . | . . . Slashing . | . . . Piercing . | . . . Highest Corruption . | . . . Average Corruption . | . . . Corruption Purged . | . . . Corruption Blocked . | . . . Overload Shots . | . . . Overflow Damage 96 | . 71 25 Projectiles . | . . . Explosions 96 | . 71 25 Melee . | . . . Knockbacks . | . . . Impact . | . . . Kinetic . | . . . Secondary . | . . . Self-Inflicted Damage 381 | . 231 150 Shots 11 | . 5 6 Rammed 1 | . 1 . Targets Rammed 1 | . 1 . Kicked . | . . . Crushed . | . . . Highest Temperature 350 | 60 350 66 Average Temperature 77 | 33 106 24 Received Heat Transfer 263 | . 42 221 Effects 3 | . 3 . Energy Bleed 3 | . 3 . Siege Activations . | . . . Robots Corrupted . | . . . Combat Hostiles . | . . . Parts Fried 3 | . 3 . Impact Corruptions . | . . . Robots Melted . | . . . Combat Hostiles . | . . . Parts Melted 1 | . 1 . Heat Transferred 536 | 87 349 100 Parts Sabotaged . | . . . Parts Stolen . | . . . Parts Stripped . | . . . Power Chain Reactions 6 | . 4 2 Alert | -11 -10 -10 ------- Run | Yrd Mat Min Peak Influence 269 | 5 269 36 Initial 5 | . 3 5 Average 78 | 3 108 10 Maximum Alert Level 1 | . 1 . Low Security (%) 83 | 100 76 100 Level 1 16 | . 23 . Level 2 . | . . . Level 3 . | . . . Level 4 . | . . . Level 5 . | . . . High Security . | . . . Max Security . | . . . Squads Dispatched . | . . . Investigation . | . . . Extermination . | . . . Reinforcement . | . . . Assault . | . . . Garrison . | . . . Intercept . | . . . Searches Triggered . | . . . Construction Impeded . | . . . Haulers Reinforced . | . . . Active Scanning Responses . | . . . Cargo Convoy Interrupts . | . . . Stealth | -11 -10 -10 --------- Run | Yrd Mat Min Distress Signals . | . . . Communications Jammed . | . . . Distress Signals . | . . . Times Spotted 36 | . 16 20 Peak Tracking Total 9 | . 3 9 Tactical Retreats . | . . . Traps | -11 -10 -10 ------- Run | Yrd Mat Min Traps Triggered . | . . . Indirectly . | . . . Trap Hack Attempts . | . . . Triggered . | . . . Disarmed . | . . . Reprogrammed . | . . . Reused . | . . . Traps Extracted . | . . . Installed . | . . . Triggered . | . . . Machines | -11 -10 -10 ---------- Run | Yrd Mat Min Machines Disabled 3 | . 3 . Max in Single Turn 2 | . 2 . Machines Repaired . | . . . Machines Dismantled . | . . . Machines Sabotaged . | . . . Overloaded Fab Kills . | . . . Hacking | -11 -10 -10 --------- Run | Yrd Mat Min Machines Accessed 6 | . 6 . Terminals 4 | . 4 . Fabricators . | . . . Repair Stations . | . . . Recycling Units 2 | . 2 . Scanalyzers . | . . . Garrison Access . | . . . Total Hacks 13 | . 13 . Successful 4 | . 4 . Failed 9 | . 9 . Catastrophic 2 | . 2 . Database Lockouts . | . . . Manual 13 | . 13 . Terminals 9 | . 9 . Fabricators . | . . . Repair Stations . | . . . Recycling Units 4 | . 4 . Scanalyzers . | . . . Garrison Access . | . . . Terminal Hacks 3 | . 3 . Robot Analysis 2 | . 2 . Prototype ID Bank 1 | . 1 . Fabricator Hacks . | . . . Repair Station Hacks . | . . . Recycling Unit Hacks . | . . . Scanalyzer . | . . . Garrison Access Hacks . | . . . Unauthorized Hacks 1 | . 1 . Terminals . | . . . Fabricators . | . . . Repair Stations . | . . . Recycling Units 1 | . 1 . Reject 1 | . 1 . Scanalyzers . | . . . Garrison Access . | . . . Data Cores Recovered 1 | . 1 . Used . | . . . Hacking Detections 6 | . 6 . Full Trace Events 1 | . 1 . Feedback Events . | . . . Feedback Blocked . | . . . Robot Schematics Acquired . | . . . Robots Built . | . . . Authchips . | . . . Time . | . . . Total Robot Build Rating . | . . . Part Schematics Acquired . | . . . Parts Built . | . . . Authchips . | . . . Time . | . . . Total Part Build Rating . | . . . Parts Repaired . | . . . Time . | . . . Parts Recycled . | . . . Recycled Matter . | . . . Retrieved Matter . | . . . Retrieved Components . | . . . Parts Scanalyzed . | . . . Part Schematics Acquired . | . . . Parts Damaged . | . . . Bothacking | -11 -10 -10 ------------ Run | Yrd Mat Min Used RIF Installer . | . . . Robots Hacked . | . . . Non-combat . | . . . Combat . | . . . Robot Hacks Applied . | . . . Relay Couplers Released . | . . . Fabnet Peak Effective % . | . . . Robots Rewired . | . . . Allies Hacked . | . . . Hacks Repelled . | . . . Allies | -11 -10 -10 -------- Run | Yrd Mat Min Total Allies . | . . . Largest Group . | . . . Highest-Rated Group . | . . . Highest-Rated Ally . | . . . Total Orders . | . . . Ally Attacks . | . . . Total Damage . | . . . Kills . | . . . Allies Corrupted . | . . . Allies Melted . | . . . Intel | -11 -10 -10 ------- Run | Yrd Mat Min Robot Analysis Total 2 | . 2 . Derelict Logs Recovered . | . . . Drone Launches . | . . . Drone Recoveries . | . . . Exploration | -11 -10 -10 ------------- Run | Yrd Mat Min Turns Passed 1903 | 52 1315 536 Spaces Moved 1029 | 34 819 176 Core 3 | 2 1 . Treads 396 | . 220 176 Legs . | . . . Wheels 630 | 32 598 . Hover . | . . . Flight . | . . . Fastest Speed 50 | 50 80 240 Average Speed 146 | 79 128 240 Slowest Speed 550 | 100 550 320 Overloaded Moves . | . . . Propulsion Burnouts . | . . . Robots Hopped . | . . . Cave-ins Triggered . | . . . Exploration Rate (%) 48 | 3 98 43 Regions Visited 2 Branch Regions 1 Pre-discovered Areas . | . . . Known Exits Taken . | . . . Unknown Exits Taken 2 | 1 1 . Scrap Searched . | . . . Spaces Dug . | . . . Terrain Destroyed 141 | . 38 103 Melee . | . . . Projectile . | . . . AOE 141 | . 38 103 Terrain Rammed . | . . . Walls Destroyed . | . . . Machines Disabled . | . . . Actions | -11 -10 -10 --------- Run | Yrd Mat Min Total 1293 | 51 998 244 Wait 68 | 2 61 5 Move 1027 | 33 818 176 Hop . | . . . Pick Up 43 | 8 25 10 Fast Attach 13 | 6 7 . Attach 7 | . . 7 Detach . | . . . Swap 12 | . 6 6 Drop 27 | . 22 5 Fire 95 | 2 58 35 Melee . | . . . Ram 1 | . 1 . Kick . | . . . Crush . | . . . Escape Stasis . | . . . Rewire . | . . . Trap . | . . . Miscellaneous . | . . . Route ------- -11/Scrapyard -10/Materials (discovered 6 exits: [*Mat x3] / [*Min x2] / [Sub]) -10/Mines (discovered 1 exit: [*Mat]) History --------- Turn | Location | Event 14 | -11/Scrapyard | Discovered new exit (range 16) 53 | -11/Scrapyard | Entered Materials 194 | -10/Materials | Discovered new exit (range 16) 215 | -10/Materials | Discovered new exit (range 16) 304 | -10/Materials | Discovered new exit (range 14) 308 | -10/Materials | Build established: Mutant 405 | -10/Materials | Discovered new exit (range 12) 541 | -10/Materials | Discovered new exit (range 10) 880 | -10/Materials | Discovered new exit (range 4) 1368 | -10/Materials | Entered Mines 1369 | -10/Mines | Assembled infested the area 1374 | -10/Mines | Assisted by a Guerilla fighting off Assembled 1375 | -10/Mines | Received a Rocket Launcher from a helpful Derelict 1397 | -10/Mines | Core integrity fell below 50% 1439 | -10/Mines | Destroyed 12 combat bots 1484 | -10/Mines | Lost 5 parts (1n4w) 1812 | -10/Mines | Discovered new exit (range 12) 1895 | -10/Mines | Core integrity fell below 20% 1904 | -10/Mines | Destroyed self with Rocket Launcher Last Messages --------------- 01724_ Acquired Wheel. 01787_ Destroyed Asb. F-torch. 01791_ K-01 Serf collects debris. 01793_ as-51804 destroyed. 01795_ The unstable cave ceiling collapses. 01796_ K-01 Serf collects debris. 01812_ Acquired 25 matter. 01812_ EXIT=FOUND 01814_ Acquired 25 matter. 01816_ K-01 Serf collects debris. 01819_ Acquired 7 matter. 01841_ Dropped Wheel. 01841_ Acquired Wheel. 01846_ The unstable cave ceiling collapses. 01858_ K-01 Serf collects debris. 01883_ Lgt. Treads destroyed. 01892_ Critical hit (Burn: +37). 01898_ EM Pulse Gun destroyed. 01901_ Imp. Ion Engine destroyed. 01904_ Y-45 Defender destroyed. Map ----- +----------------------------------------------------+ | | | | | | | | | | | | | | | | | | | | | ??????????####??????????????####### | | ??????????#######??????????######## | | ??????????# ####?????????#### ## | | ?????????## ##???????#### | | ???????#### ###???????### | | ??????#### ##??????### ## | | ???###### #####??#### ## | | ??###### < ########## | | ??###[!## ###### ! | | ??##"!/ % | | | ??## = % =* | | ??## % # ### ## | | ??##"![ !% ## ###= ## | | ??###!! ##### ## # # | | ??##### ###### ## | | ?????## # @ ###### = # ## | | ???????## ###??## ## | | ???????### ###??## ## # ## | | ???????#######???## ## # ### | | ????????######???### #### # ### | | ?????????????????######### ## ##? | | ??????????????????#### ## ##? | | ????????????????????????###### ##? | | ????????????????????????######? ##? | | ??????????????????????????????????? | | ??????????????????????????????????? | | ??????????????????????????????????? | | ??????????????????????????????????? | | ??????????????????????????????????? | | ??????????????????????????????????? | | ??????????????????????????????????? | | ??????????????????????????????????? | | ??????????????????????????????????? | | ??????????????????????????????????? | | ??????????????????????????????????? | | ??????????????????????????????????? | | ??????????????????????????????????? | | ??????????????????????????????????? | | ??????????????????????????????????? | | ??????????????????????????????????? | +----------------------------------------------------+ Best States ------------- Heat Dissipation 25 Energy Generation 12 Energy Capacity 265 Matter Stores 300 Matter Capacity 300 Sight Range 16 Terrain Scan Density 10 Evasion (%) 44 Recoil Reduction 2 Item Schematics ----------------- None Robot Schematics ------------------ None Fabricated ------------ Nothing Alien Tech Used ----------------- None Achievements -------------- None Challenges ------------ None Game ------ Seed TerrabombResetEdition Manual? 0 Play Time 00:23:19 Cumulative 44.7 hours Start 2024.08.25 @ 10:51:41 End 2024.08.25 @ 11:22:35 Sessions 1 Manual Loads 0 Difficulty Rogue Special Mode None Game No. 34 Rogue 22 Adventurer 12 Explorer 0 Win Type - Total 1 Types 1/0/0/0/0/0/0/0/0 Lore% 12 Gallery% 24 Achievement% 28 Wizard Run 0 Options --------- Layout 0 ASCII 0 Keyboard 0 Movement Mouse Keybinds 0 Fullscreen 2 Font 18/SmallcapsGlow Map View 76x50 Zoom Use 0% Tactical HUD 1 Map Filters NONE Filters NONE Steam 1 RUN: 447ac21f-1ac4-4b59-94c5-506e7c46740e